Workbook

Sheet 국지도, 지방도(5)
A1: 2024년 도로 교통량 조사 결과 집계표(지방도 및 국가지원지방도)
A2: 노선별 | C2: 2024년 교통량 조사결과 (차종별 6시간) | AC2: 24시간 총조사결과
C3: 시간 | D3: 계 | E3: 1종 (승용) | G3: 2종 (버스) | I3: 3종 (소형트럭) | K3: 4종 (소형트럭) | M3: 5종 (중형트럭) | O3: 6종 (중형트럭) | Q3: 7종 (중형트럭) | S3: 8종 (대형트럭) | U3: 9종 (대형트럭) | W3: 10종 (대형트럭) | Y3: 11종 (대형트럭) | AA3: 12종 (대형트럭) | AC3: 시간 | AD3: 2023년 | AE3: 2024년 | AF3: 증감 | AG3: 증감율
E4: 상행 | F4: 하행 | G4: 상행 | H4: 하행 | I4: 상행 | J4: 하행 | K4: 상행 | L4: 하행 | M4: 상행 | N4: 하행 | O4: 상행 | P4: 하행 | Q4: 상행 | R4: 하행 | S4: 상행 | T4: 하행 | U4: 상행 | V4: 하행 | W4: 상행 | X4: 하행 | Y4: 상행 | Z4: 하행 | AA4: 상행 | AB4: 하행
A5: 합계 (5지점) | C5: 합계 | D5: =SUM(D8,D11,D14,D17,D20) -> 9,914 | E5: 3,736 | F5: 2,804 | G5: 226 | H5: 244 | I5: 984 | J5: 850 | K5: 67 | L5: 59 | M5: 323 | N5: 300 | O5: 106 | P5: 116 | Q5: 9 | R5: 26 | S5: 11 | T5: 2 | U5: 2 | V5: 3 | W5: 5 | X5: 14 | Y5: 3 | Z5: 2 | AA5: 9 | AB5: 13 | AC5: 합계 | AD5: =SUM(AD6:AD7) -> 20,697 | AE5: =SUM(AE6:AE7) -> 22,437 | AF5: =AE5-AD5 -> 1,740 | AG5: =AF5/AD5 -> 8.41%
C6: 주간 | D6: =SUM(D9,D12,D15,D18,D21) -> 5,110 | E6: 1,663 | F6: 1,533 | G6: 98 | H6: 97 | I6: 535 | J6: 489 | K6: 29 | L6: 34 | M6: 188 | N6: 203 | O6: 83 | P6: 88 | Q6: 4 | R6: 14 | S6: 10 | T6: 1 | U6: 2 | V6: 3 | W6: 5 | X6: 14 | Y6: 2 | Z6: 0 | AA6: 8 | AB6: 7 | AC6: 주간 (07~19) | AD6: =AD9+AD12+AD15+AD18+AD21 -> 17,551 | AE6: =AE9+AE12+AE15+AE18+AE21 -> 18,471 | AF6: =AE6-AD6 -> 920
C7: 야간 | D7: =SUM(D10,D13,D16,D19,D22) -> 4,804 | E7: 2,073 | F7: 1,271 | G7: 128 | H7: 147 | I7: 449 | J7: 361 | K7: 38 | L7: 25 | M7: 135 | N7: 97 | O7: 23 | P7: 28 | Q7: 5 | R7: 12 | S7: 1 | T7: 1 | U7: 0 | V7: 0 | W7: 0 | X7: 0 | Y7: 1 | Z7: 2 | AA7: 1 | AB7: 6 | AC7: 야간 (19~07) | AD7: =AD10+AD13+AD16+AD19+AD22 -> 3,146 | AE7: =AE10+AE13+AE16+AE19+AE22 -> 3,966 | AF7: 820
A8: 22-01 (나진<=>여수) 콘파레펜션 앞 | C8: 소계 | D8: =SUM(E8:AB8) -> 3,084 | E8: =SUM(E9:E10) -> 1,236 | F8: 1,032 | G8: 76 | H8: 62 | I8: 215 | J8: 148 | K8: 37 | L8: 19 | M8: 59 | N8: 33 | O8: 71 | P8: 65 | Q8: 4 | R8: 4 | S8: 3 | T8: 2 | U8: 2 | V8: 1 | W8: 4 | X8: 7 | Y8: 1 | Z8: 0 | AA8: 2 | AB8: 1 | AC8: 소계 | AD8: =SUM(AD9:AD10) -> 7,103 | AE8: =SUM(AE9:AE10) -> 7,257 | AF8: 154 | AG8: =AF8/AD8 -> 2%
C9: 08~11 | D9: 2,070 | E9: 796 | F9: 672 | G9: 16 | H9: 12 | I9: 175 | J9: 133 | K9: 17 | L9: 14 | M9: 54 | N9: 32 | O9: 64 | P9: 60 | Q9: 2 | R9: 2 | S9: 2 | T9: 1 | U9: 2 | V9: 1 | W9: 4 | X9: 7 | Y9: 1 | Z9: 0 | AA9: 2 | AB9: 1 | AC9: 주간 (07~19) | AD9: 6,243 | AE9: 6,010 | AF9: -233
C10: 15~18 | D10: 1,014 | E10: 440 | F10: 360 | G10: 60 | H10: 50 | I10: 40 | J10: 15 | K10: 20 | L10: 5 | M10: 5 | N10: 1 | O10: 7 | P10: 5 | Q10: 2 | R10: 2 | S10: 1 | T10: 1 | U10: 0 | V10: 0 | W10: 0 | X10: 0 | Y10: 0 | Z10: 0 | AA10: 0 | AB10: 0 | AC10: 야간 (19~07) | AD10: 860 | AE10: 1,247 | AF10: 387
A11: 22-02 (소라<=>율촌) 소라면사무소 앞 | C11: 소계 | D11: 3,805 | E11: =SUM(E12:E13) -> 1,224 | F11: 1,010 | G11: 88 | H11: 129 | I11: 400 | J11: 474 | K11: 15 | L11: 25 | M11: 182 | N11: 200 | O11: 4 | P11: 5 | Q11: 5 | R11: 22 | S11: 0 | T11: 0 | U11: 0 | V11: 2 | W11: 1 | X11: 7 | Y11: 1 | Z11: 0 | AA11: 5 | AB11: 6 | AC11: 소계 | AD11: =SUM(AD12:AD13) -> 8,194 | AE11: =SUM(AE12:AE13) -> 8,402 | AF11: 208 | AG11: 3%
C12: 08~11 | D12: 1,718 | E12: 523 | F12: 426 | G12: 46 | H12: 57 | I12: 170 | J12: 235 | K12: 2 | L12: 8 | M12: 96 | N12: 121 | O12: 0 | P12: 4 | Q12: 2 | R12: 12 | S12: 0 | T12: 0 | U12: 0 | V12: 2 | W12: 1 | X12: 7 | Y12: 0 | Z12: 0 | AA12: 4 | AB12: 2 | AC12: 주간 (07~19) | AD12: 6,952 | AE12: 7,125 | AF12: 173
C13: 15~18 | D13: 2,087 | E13: 701 | F13: 584 | G13: 42 | H13: 72 | I13: 230 | J13: 239 | K13: 13 | L13: 17 | M13: 86 | N13: 79 | O13: 4 | P13: 1 | Q13: 3 | R13: 10 | S13: 0 | T13: 0 | U13: 0 | V13: 0 | W13: 0 | X13: 0 | Y13: 1 | Z13: 0 | AA13: 1 | AB13: 4 | AC13: 야간 (19~07) | AD13: 1,242 | AE13: 1,277 | AF13: 35
A14: 22-03 (장수<=>여수) 안포마을회관 앞 | C14: 소계 | D14: =SUM(E14:AB14) -> 2,419 | E14: =SUM(E15:E16) -> 1,168 | F14: =SUM(F15:F16) -> 609 | G14: 34 | H14: 20 | I14: 250 | J14: 141 | K14: 6 | L14: 6 | M14: 52 | N14: 37 | O14: 31 | P14: 46 | Q14: 0 | R14: 0 | S14: 8 | T14: 0 | U14: 0 | V14: 0 | W14: 0 | X14: 0 | Y14: 1 | Z14: 2 | AA14: 2 | AB14: 6 | AC14: 소계 | AD14: =SUM(AD15:AD16) -> 4,166 | AE14: =SUM(AE15:AE16) -> 5,717 | AF14: 1,551 | AG14: 37%
C15: 08~11 | D15: 1,001 | E15: 288 | F15: 367 | G15: 21 | H15: 11 | I15: 115 | J15: 74 | K15: 3 | L15: 6 | M15: 23 | N15: 35 | O15: 19 | P15: 24 | Q15: 0 | R15: 0 | S15: 8 | T15: 0 | U15: 0 | W15: 0 | X15: 0 | Y15: 1 | Z15: 0 | AA15: 2 | AB15: 4 | AC15: 주간 (07~19) | AD15: 3,348 | AE15: 4,479 | AF15: 1,131
C16: 15~18 | D16: 1,418 | E16: 880 | F16: 242 | G16: 13 | H16: 9 | I16: 135 | J16: 67 | K16: 3 | L16: 0 | M16: 29 | N16: 2 | O16: 12 | P16: 22 | Q16: 0 | R16: 0 | S16: 0 | T16: 0 | U16: 0 | V16: 0 | W16: 0 | X16: 0 | Y16: 0 | Z16: 2 | AA16: 0 | AB16: 2 | AC16: 야간 (19~07) | AD16: 818 | AE16: 1,238 | AF16: 420
A17: 863-01 (일반77<=>서촌) 이목마을승강장 | C17: 소계 | D17: 106 | E17: =SUM(E18:E19) -> 28 | F17: =SUM(F18:F19) -> 31 | G17: 8 | H17: 13 | I17: 5 | J17: 7 | K17: 7 | L17: 7 | M17: 0 | N17: 0 | O17: 0 | P17: 0 | Q17: 0 | R17: 0 | S17: 0 | T17: 0 | U17: 0 | V17: 0 | W17: 0 | X17: 0 | Y17: 0 | Z17: 0 | AA17: 0 | AB17: 0 | AC17: 소계 | AD17: =SUM(AD18:AD19) -> 520 | AE17: =SUM(AE18:AE19) -> 365 | AF17: -155 | AG17: -30%
C18: 08~11 | D18: 65 | E18: 16 | F18: 16 | G18: 5 | H18: 7 | I18: 5 | J18: 7 | K18: 5 | L18: 4 | N18: 0 | O18: 0 | P18: 0 | Q18: 0 | R18: 0 | S18: 0 | T18: 0 | U18: 0 | V18: 0 | W18: 0 | X18: 0 | Y18: 0 | Z18: 0 | AA18: 0 | AB18: 0 | AC18: 주간 (07~19) | AD18: 412 | AE18: 299 | AF18: -113
C19: 15~18 | D19: 41 | E19: 12 | F19: 15 | G19: 3 | H19: 6 | I19: 0 | J19: 0 | K19: 2 | L19: 3 | M19: 0 | N19: 0 | O19: 0 | P19: 0 | Q19: 0 | R19: 0 | S19: 0 | T19: 0 | U19: 0 | V19: 0 | W19: 0 | X19: 0 | Y19: 0 | Z19: 0 | AA19: 0 | AB19: 0 | AC19: 야간 (19~07) | AD19: 108 | AE19: 66 | AF19: -42
A20: 863-04 (소라<=>서촌) 대옥마을승강장 | C20: 소계 | D20: 500 | E20: =SUM(E21:E22) -> 80 | F20: =SUM(F21:F22) -> 122 | G20: 20 | H20: 20 | I20: 114 | J20: 80 | K20: 2 | L20: 2 | M20: 30 | N20: 30 | O20: 0 | P20: 0 | Q20: 0 | R20: 0 | S20: 0 | T20: 0 | U20: 0 | V20: 0 | W20: 0 | X20: 0 | Y20: 0 | Z20: 0 | AA20: 0 | AB20: 0 | AC20: 소계 | AD20: =SUM(AD21:AD22) -> 714 | AE20: =SUM(AE21:AE22) -> 696 | AF20: -18 | AG20: -3%
C21: 08~11 | D21: 256 | E21: 40 | F21: 52 | G21: 10 | H21: 10 | I21: 70 | J21: 40 | K21: 2 | L21: 2 | M21: 15 | N21: 15 | O21: 0 | P21: 0 | Q21: 0 | R21: 0 | S21: 0 | T21: 0 | U21: 0 | V21: 0 | W21: 0 | X21: 0 | Y21: 0 | Z21: 0 | AA21: 0 | AB21: 0 | AC21: 주간 (07~19) | AD21: 596 | AE21: 558 | AF21: -38
C22: 15~18 | D22: 244 | E22: 40 | F22: 70 | G22: 10 | H22: 10 | I22: 44 | J22: 40 | K22: 0 | L22: 0 | M22: 15 | N22: 15 | O22: 0 | P22: 0 | Q22: 0 | R22: 0 | S22: 0 | T22: 0 | U22: 0 | V22: 0 | W22: 0 | X22: 0 | Y22: 0 | Z22: 0 | AA22: 0 | AB22: 0 | AC22: 야간 (19~07) | AD22: 118 | AE22: 138 | AF22: 20
Z28: `

Sheet 시도집계표(18)
A1: 2024년 도로 교통량 조사 결과 집계표(시도)
A2: 노선별 | C2: 2024년 교통량 조사결과 (차종별 6시간) | AC2: 24시간 총조사결과
C3: 시간 | D3: 계 | E3: 1종 (승용) | G3: 2종 (버스) | I3: 3종 (소형트럭) | K3: 4종 (소형트럭) | M3: 5종 (중형트럭) | O3: 6종 (중형트럭) | Q3: 7종 (중형트럭) | S3: 8종 (대형트럭) | U3: 9종 (대형트럭) | W3: 10종 (대형트럭) | Y3: 11종 (대형트럭) | AA3: 12종 (대형트럭) | AC3: 시간 | AD3: 2023년 | AE3: 2024년 | AF3: 증감 | AG3: 증감율
E4: 상행 | F4: 하행 | G4: 상행 | H4: 하행 | I4: 상행 | J4: 하행 | K4: 상행 | L4: 하행 | M4: 상행 | N4: 하행 | O4: 상행 | P4: 하행 | Q4: 상행 | R4: 하행 | S4: 상행 | T4: 하행 | U4: 상행 | V4: 하행 | W4: 상행 | X4: 하행 | Y4: 상행 | Z4: 하행 | AA4: 상행 | AB4: 하행
A5: 합 계 (18지점) | C5: 합계 | D5: =SUM(D6:D7) -> 15,809 | E5: =SUM(E6:E7) -> 5,694 | F5: =SUM(F6:F7) -> 5,070 | G5: 262 | H5: 222 | I5: 1,758 | J5: 1,657 | K5: 173 | L5: 143 | M5: 84 | N5: 114 | O5: 213 | P5: 165 | Q5: 34 | R5: 36 | S5: 8 | T5: 6 | U5: 12 | V5: 19 | W5: 44 | X5: 25 | Y5: 7 | Z5: 35 | AA5: 13 | AB5: 15 | AC5: 합계 | AD5: =SUM(AD6:AD7) -> 35,306 | AE5: =SUM(AE6:AE7) -> 34,115 | AF5: =AE5-AD5 -> -1,191 | AG5: =AF5/AD5 -> -3.37%
C6: 주간 | D6: =SUM(E6:AB6) -> 8,526 | E6: =SUM(E9,E12,E15,E18,E21,E24,E27,E30,E33,E36,E39,E42,E45,E48,E51,E54,E57,E60) -> 2,890 | F6: =SUM(F9,F12,F15,F18,F21,F24,F27,F30,F33,F36,F39,F42,F45,F48,F51,F54,F57,F60) -> 2,650 | G6: 140 | H6: 123 | I6: 1,043 | J6: 950 | K6: 113 | L6: 90 | M6: 63 | N6: =SUM(N9,N12,N15,N18,N21,N24,N27,N30,N33,N36,N39,N42,N45,N48,N51,N54,N57,N60) -> 88 | O6: 142 | P6: 91 | Q6: 32 | R6: 32 | S6: 5 | T6: 5 | U6: 9 | V6: 10 | W6: 12 | X6: 19 | Y6: 2 | Z6: 1 | AA6: 8 | AB6: 8 | AC6: 주간 07~19 | AD6: =SUM(AD9,AD12,AD15,AD18,AD21,AD24,AD27,AD30,AD33,AD36,AEA39,AD42,AD45,AD48,AD51,AD54,AD57,AD60,AD39) -> 29,066 | AE6: =SUM(AE9,AE12,AE15,AE18,AE21,AE24,AE27,AE30,AE33,AE36,AEB39,AE42,AE45,AE48,AE51,AE54,AE57,AE60,AE39) -> 28,046 | AF6: =AE6-AD6 -> -1,020 | AG6: =AF6/AD6 -> -4%
C7: 야간 | D7: =SUM(E7:AB7) -> 7,283 | E7: =SUM(E10,E13,E16,E19,E22,E25,E28,E31,E34,E37,E40,E43,E46,E49,E52,E55,E58,E61) -> 2,804 | F7: =SUM(F10,F13,F16,F19,F22,F25,F28,F31,F34,F37,F40,F43,F46,F49,F52,F55,F58,F61) -> 2,420 | G7: 122 | H7: 99 | I7: 715 | J7: 707 | K7: 60 | L7: 53 | M7: 21 | N7: =SUM(N10,N13,N16,N19,N22,N25,N28,N31,N34,N37,N40,N43,N46,N49,N52,N55,N58,N61) -> 26 | O7: 71 | P7: 74 | Q7: 2 | R7: 4 | S7: 3 | T7: 1 | U7: 3 | V7: 9 | W7: 32 | X7: 6 | Y7: 5 | Z7: 34 | AA7: 5 | AB7: 7 | AC7: 야간 19~07 | AD7: =SUM(AD10,AD13,AD16,AD19,AD22,AD25,AD28,AD31,AD34,AD37,AD40,AD43,AD46,AD49,AD52,AD55,AD58,AD61) -> 6,240 | AE7: =SUM(AE10,AE13,AE16,AE19,AE22,AE25,AE28,AE31,AE34,AE37,AE40,AE43,AE46,AE49,AE52,AE55,AE58,AE61) -> 6,069 | AF7: -171 | AG7: =AF7/AD7 -> -3%
A8: 1호 | B8: 36-02-01 (임포-죽포) 갓고을영농조합법인 앞 | C8: 소계 | D8: =SUM(E8:AB8) -> 1,158 | E8: =SUM(E9:E10) -> 425 | F8: 482 | G8: 17 | H8: 20 | I8: 95 | J8: 111 | K8: 3 | L8: 3 | M8: 1 | N8: =SUM(N9:N10) -> 1 | O8: 0 | P8: 0 | Q8: 0 | R8: 0 | S8: 0 | T8: 0 | U8: 0 | V8: 0 | W8: 0 | X8: 0 | Y8: 0 | Z8: 0 | AA8: 0 | AB8: 0 | AC8: 소계 | AD8: =SUM(AD9:AD10) -> 2,660 | AE8: =SUM(AE9:AE10) -> 2,718 | AF8: 58 | AG8: 2%
C9: 08~11 | D9: =SUM(E9:AB9) -> 523 | E9: 130 | F9: 275 | G9: 6 | H9: 12 | I9: 46 | J9: 52 | K9: 0 | L9: 2 | M9: 0 | N9: 0 | O9: 0 | P9: 0 | Q9: 0 | R9: 0 | S9: 0 | T9: 0 | U9: 0 | V9: 0 | W9: 0 | X9: 0 | Y9: 0 | Z9: 0 | AA9: 0 | AB9: 0 | AC9: 주간 07~19 | AD9: 2,287 | AE9: 2,239 | AF9: -48 | AG9: -2%
C10: 15~18 | D10: =SUM(E10:AB10) -> 635 | E10: 295 | F10: 207 | G10: 11 | H10: 8 | I10: 49 | J10: 59 | K10: 3 | L10: 1 | M10: 1 | N10: 1 | O10: 0 | P10: 0 | Q10: 0 | R10: 0 | S10: 0 | T10: 0 | U10: 0 | V10: 0 | W10: 0 | X10: 0 | Y10: 0 | Z10: 0 | AA10: 0 | AB10: 0 | AC10: 야간 19~07 | AD10: 373 | AE10: 479 | AF10: 106 | AG10: 28%
A11: 2호 | B11: 36-02-02 (신기⇔대율) 부영슈퍼 앞 | C11: 소계 | D11: =SUM(E11:AB11) -> 245 | E11: =SUM(E12:E13) -> 107 | F11: =SUM(F12:F13) -> 103 | G11: 8 | H11: 8 | I11: 9 | J11: 8 | K11: 1 | L11: 1 | M11: 0 | N11: 0 | O11: 0 | P11: 0 | Q11: 0 | R11: 0 | S11: 0 | T11: 0 | U11: 0 | V11: 0 | W11: 0 | X11: 0 | Y11: 0 | Z11: 0 | AA11: 0 | AB11: 0 | AC11: 소계 | AD11: =SUM(AD12:AD13) -> 516 | AE11: =SUM(AE12:AE13) -> 547 | AF11: 31 | AG11: 6%
C12: 08~11 | D12: =SUM(E12:AB12) -> 115 | E12: 50 | F12: 47 | G12: 4 | H12: 5 | I12: 5 | J12: 4 | K12: 0 | L12: 0 | M12: 0 | N12: 0 | O12: 0 | P12: 0 | Q12: 0 | R12: 0 | S12: 0 | T12: 0 | U12: 0 | V12: 0 | W12: 0 | X12: 0 | Y12: 0 | Z12: 0 | AA12: 0 | AB12: 0 | AC12: 주간 07~19 | AD12: 464 | AE12: 487 | AF12: 23 | AG12: 5%
C13: 15~18 | D13: =SUM(E13:AB13) -> 130 | E13: 57 | F13: 56 | G13: 4 | H13: 3 | I13: 4 | J13: 4 | K13: 1 | L13: 1 | M13: 0 | N13: 0 | O13: 0 | P13: 0 | Q13: 0 | R13: 0 | S13: 0 | T13: 0 | U13: 0 | V13: 0 | W13: 0 | X13: 0 | Y13: 0 | Z13: 0 | AA13: 0 | AB13: 0 | AC13: 야간 19~07 | AD13: 52 | AE13: 60 | AF13: 8 | AG13: 15%
A14: 4호 | B14: 36-02-03 (진두-하동) 나폴리팬션 앞 | C14: 소계 | D14: 854 | E14: =SUM(E15:E16) -> 373 | F14: =SUM(F15:F16) -> 286 | G14: 27 | H14: 6 | I14: 90 | J14: 63 | K14: 4 | L14: 5 | M14: 0 | N14: 0 | O14: 0 | P14: 0 | Q14: 0 | R14: 0 | S14: 0 | T14: 0 | U14: 0 | V14: 0 | W14: 0 | X14: 0 | Y14: 0 | Z14: 0 | AA14: 0 | AB14: 0 | AC14: 소계 | AD14: =SUM(AD15:AD16) -> 2,370 | AE14: =SUM(AE15:AE16) -> 2,569 | AF14: 199 | AG14: 8%
C15: 08~11 | D15: 424 | E15: 190 | F15: 138 | G15: 8 | H15: 4 | I15: 43 | J15: 36 | K15: 2 | L15: 3 | M15: 0 | N15: 0 | O15: 0 | P15: 0 | Q15: 0 | R15: 0 | S15: 0 | T15: 0 | U15: 0 | V15: 0 | W15: 0 | X15: 0 | Y15: 0 | Z15: 0 | AA15: 0 | AB15: 0 | AC15: 주간 07~19 | AD15: 1,789 | AE15: 1,649 | AF15: -140 | AG15: =AF15/AD15 -> -8%
C16: 15~18 | D16: 430 | E16: 183 | F16: 148 | G16: 19 | H16: 2 | I16: 47 | J16: 27 | K16: 2 | L16: 2 | M16: 0 | N16: 0 | O16: 0 | P16: 0 | Q16: 0 | R16: 0 | S16: 0 | T16: 0 | U16: 0 | V16: 0 | W16: 0 | X16: 0 | Y16: 0 | Z16: 0 | AA16: 0 | AB16: 0 | AC16: 야간 19~07 | AD16: 581 | AE16: 920 | AF16: 339 | AG16: 58%
A17: 5호 | B17: 36-02-04 (송시-도실) 돌산마트 앞 | C17: 소계 | D17: 2,064 | E17: =SUM(E18:E19) -> 500 | F17: =SUM(F18:F19) -> 508 | G17: 17 | H17: 21 | I17: 421 | J17: 451 | K17: 14 | L17: 13 | M17: 12 | N17: 13 | O17: 27 | P17: 27 | Q17: 2 | R17: 3 | S17: 5 | T17: 4 | U17: 2 | V17: 3 | W17: 3 | X17: 5 | Y17: 6 | Z17: 2 | AA17: 2 | AB17: 3 | AC17: 소계 | AD17: =SUM(AD18:AD19) -> 4,284 | AE17: =SUM(AE18:AE19) -> 4,131 | AF17: -153 | AG17: -4%
C18: 08~11 | D18: 1,118 | E18: 275 | F18: 250 | G18: 10 | H18: 11 | I18: 250 | J18: 251 | K18: 6 | L18: 7 | M18: 7 | N18: 8 | O18: 16 | P18: 5 | Q18: 1 | R18: 2 | S18: 3 | T18: 3 | U18: 1 | V18: 2 | W18: 2 | X18: 2 | Y18: 2 | Z18: 1 | AA18: 1 | AB18: 2 | AC18: 주간 07~19 | AD18: 2,803 | AE18: 3,256 | AF18: 453 | AG18: 16%
C19: 15~18 | D19: 946 | E19: 225 | F19: 258 | G19: 7 | H19: 10 | I19: 171 | J19: 200 | K19: 8 | L19: 6 | M19: 5 | N19: 5 | O19: 11 | P19: 22 | Q19: 1 | R19: 1 | S19: 2 | T19: 1 | U19: 1 | V19: 1 | W19: 1 | X19: 3 | Y19: 4 | Z19: 1 | AA19: 1 | AB19: 1 | AC19: 야간 19~07 | AD19: 1,481 | AE19: 875 | AF19: -606 | AG19: -41%
A20: 7호 | B20: 36-02-05 (둔전-굴전) 해오름팬션 앞 | C20: 소계 | D20: 426 | E20: =SUM(E21:E22) -> 151 | F20: =SUM(F21:F22) -> 196 | G20: 13 | H20: 8 | I20: 30 | J20: 28 | K20: 0 | L20: 0 | M20: 0 | N20: 0 | O20: 0 | P20: 0 | Q20: 0 | R20: 0 | S20: 0 | T20: 0 | U20: 0 | V20: 0 | W20: 0 | X20: 0 | Y20: 0 | Z20: 0 | AA20: 0 | AB20: 0 | AC20: 소계 | AD20: =SUM(AD21:AD22) -> 1,133 | AE20: =SUM(AE21:AE22) -> 1,077 | AF20: =AE20-AD20 -> -56 | AG20: =AF20/AD20 -> -5%
C21: 08~11 | D21: 148 | E21: 39 | F21: 63 | G21: 11 | H21: 4 | I21: 16 | J21: 15 | K21: 0 | L21: 0 | M21: 0 | N21: 0 | O21: 0 | P21: 0 | Q21: 0 | R21: 0 | S21: 0 | T21: 0 | U21: 0 | V21: 0 | W21: 0 | X21: 0 | Y21: 0 | Z21: 0 | AA21: 0 | AB21: 0 | AC21: 주간 07~19 | AD21: 955 | AE21: 917 | AF21: -38 | AG21: -4%
C22: 15~18 | D22: 278 | E22: 112 | F22: 133 | G22: 2 | H22: 4 | I22: 14 | J22: 13 | K22: 0 | L22: 0 | M22: 0 | N22: 0 | O22: 0 | P22: 0 | Q22: 0 | R22: 0 | S22: 0 | T22: 0 | U22: 0 | V22: 0 | W22: 0 | X22: 0 | Y22: 0 | Z22: 0 | AA22: 0 | AB22: 0 | AC22: 야간 19~07 | AD22: 178 | AE22: 160 | AF22: -18 | AG22: -10%
A23: 8호 | B23: 36-02-06 (풍류-내기) 유로조경 앞 | C23: 소계 | D23: 1,245 | E23: =SUM(E24:E25) -> 482 | F23: =SUM(F24:F25) -> 472 | G23: 9 | H23: 11 | I23: 97 | J23: 98 | K23: 27 | L23: 22 | M23: 8 | N23: 8 | O23: 4 | P23: 3 | Q23: 1 | R23: 3 | S23: 0 | T23: 0 | U23: 0 | V23: 0 | W23: 0 | X23: 0 | Y23: 0 | Z23: 0 | AA23: 0 | AB23: 0 | AC23: 소계 | AD23: =SUM(AD24:AD25) -> 2,319 | AE23: =SUM(AE24:AE25) -> 2,342 | AF23: 23 | AG23: 1%
C24: 08~11 | D24: 574 | E24: 180 | F24: 270 | G24: 6 | H24: 3 | I24: 51 | J24: 38 | K24: 5 | L24: 6 | M24: 4 | N24: 3 | O24: 2 | P24: 2 | Q24: 1 | R24: 3 | S24: 0 | T24: 0 | U24: 0 | V24: 0 | W24: 0 | X24: 0 | Y24: 0 | Z24: 0 | AA24: 0 | AB24: 0 | AC24: 주간 07~19 | AD24: 2,102 | AE24: 2,111 | AF24: 9 | AG24: 0%
C25: 15~18 | D25: 671 | E25: 302 | F25: 202 | G25: 3 | H25: 8 | I25: 46 | J25: 60 | K25: 22 | L25: 16 | M25: 4 | N25: 5 | O25: 2 | P25: 1 | Q25: 0 | R25: 0 | S25: 0 | T25: 0 | U25: 0 | V25: 0 | W25: 0 | X25: 0 | Y25: 0 | Z25: 0 | AA25: 0 | AB25: 0 | AC25: 야간 19~07 | AD25: 217 | AE25: 231 | AF25: 14 | AG25: 6%
A26: 10호 | B26: 36-02-07 (달천-대포) 방앗간가든 앞 | C26: 소계 | D26: 689 | E26: =SUM(E27:E28) -> 196 | F26: =SUM(F27:F28) -> 174 | G26: 5 | H26: 3 | I26: 81 | J26: 97 | K26: 26 | L26: 23 | M26: 6 | N26: 6 | O26: 11 | P26: 7 | Q26: 6 | R26: 7 | S26: 2 | T26: 1 | U26: 10 | V26: 14 | W26: 6 | X26: 5 | Y26: 1 | Z26: 0 | AA26: 1 | AB26: 1 | AC26: 소계 | AD26: =SUM(AD27:AD28) -> 1,184 | AE26: =SUM(AE27:AE28) -> 1,261 | AF26: 77 | AG26: 7%
C27: 08~11 | D27: 377 | E27: 90 | F27: 90 | G27: 4 | H27: 2 | I27: 46 | J27: 51 | K27: 22 | L27: 14 | M27: 6 | N27: 4 | O27: 6 | P27: 5 | Q27: 5 | R27: 6 | S27: 2 | T27: 1 | U27: 8 | V27: 6 | W27: 5 | X27: 2 | Y27: 0 | Z27: 0 | AA27: 1 | AB27: 1 | AC27: 주간 07~19 | AD27: 1,050 | AE27: 1,114 | AF27: 64 | AG27: 6%
C28: 15~18 | D28: 312 | E28: 106 | F28: 84 | G28: 1 | H28: 1 | I28: 35 | J28: 46 | K28: 4 | L28: 9 | M28: 0 | N28: 2 | O28: 5 | P28: 2 | Q28: 1 | R28: 1 | S28: 0 | T28: 0 | U28: 2 | V28: 8 | W28: 1 | X28: 3 | Y28: 1 | Z28: 0 | AA28: 0 | AB28: 0 | AC28: 야간 19~07 | AD28: 134 | AE28: 147 | AF28: 13 | AG28: 10%
A29: 11호 | B29: 36-02-08 (덕양-연화) 가나건축자재 앞 | C29: 소계 | D29: 780 | E29: =SUM(E30:E31) -> 264 | F29: =SUM(F30:F31) -> 177 | G29: 17 | H29: 13 | I29: 16 | J29: 31 | K29: 4 | L29: 4 | M29: 14 | N29: 4 | O29: 111 | P29: 104 | Q29: 0 | R29: 1 | S29: 0 | T29: 0 | U29: 0 | V29: 0 | W29: 0 | X29: 0 | Y29: 0 | Z29: 0 | AA29: 9 | AB29: 11 | AC29: 소계 | AD29: =SUM(AD30:AD31) -> 1,882 | AE29: =SUM(AE30:AE31) -> 1,895 | AF29: 13 | AG29: =AF29/AD29 -> 1%
C30: 08~11 | D30: 506 | E30: 214 | F30: 89 | G30: 13 | H30: 7 | I30: 8 | J30: 17 | K30: 1 | L30: 2 | M30: 8 | N30: 2 | O30: 67 | P30: 66 | Q30: 0 | R30: 1 | S30: 0 | T30: 0 | U30: 0 | V30: 0 | W30: 0 | X30: 0 | Y30: 0 | Z30: 0 | AA30: 6 | AB30: 5 | AC30: 주간 07~19 | AD30: 1,601 | AE30: 1,618 | AF30: 17 | AG30: =AF30/AD30 -> 1%
C31: 15~18 | D31: 274 | E31: 50 | F31: 88 | G31: 4 | H31: 6 | I31: 8 | J31: 14 | K31: 3 | L31: 2 | M31: 6 | N31: 2 | O31: 44 | P31: 38 | Q31: 0 | R31: 0 | S31: 0 | T31: 0 | U31: 0 | V31: 0 | W31: 0 | X31: 0 | Y31: 0 | Z31: 0 | AA31: 3 | AB31: 6 | AC31: 야간 19~07 | AD31: 281 | AE31: 277 | AF31: -4 | AG31: =AF31/AD31 -> -1%
A32: 12호 | B32: 36-02-09 (달천-신흥) 소라면 달천길 46 | C32: 소계 | D32: 310 | E32: =SUM(E33:E34) -> 108 | F32: =SUM(F33:F34) -> 106 | G32: 8 | H32: 5 | I32: 36 | J32: 37 | K32: 5 | L32: 3 | M32: 2 | N32: 0 | O32: 0 | P32: 0 | Q32: 0 | R32: 0 | S32: 0 | T32: 0 | U32: 0 | V32: 0 | W32: 0 | X32: 0 | Y32: 0 | Z32: 0 | AA32: 0 | AB32: 0 | AC32: 소계 | AD32: =SUM(AD33:AD34) -> 631 | AE32: =SUM(AE33:AE34) -> 671 | AF32: 40 | AG32: 6%
C33: 08~11 | D33: 169 | E33: 49 | F33: 56 | G33: 4 | H33: 2 | I33: 21 | J33: 28 | K33: 4 | L33: 3 | M33: 2 | N33: 0 | O33: 0 | P33: 0 | Q33: 0 | R33: 0 | S33: 0 | T33: 0 | U33: 0 | V33: 0 | W33: 0 | X33: 0 | Y33: 0 | Z33: 0 | AA33: 0 | AB33: 0 | AC33: 주간 07~19 | AD33: 555 | AE33: 566 | AF33: 11 | AG33: 2%
C34: 15~18 | D34: 141 | E34: 59 | F34: 50 | G34: 4 | H34: 3 | I34: 15 | J34: 9 | K34: 1 | L34: 0 | M34: 0 | N34: 0 | O34: 0 | P34: 0 | Q34: 0 | R34: 0 | S34: 0 | T34: 0 | U34: 0 | V34: 0 | W34: 0 | X34: 0 | Y34: 0 | Z34: 0 | AA34: 0 | AB34: 0 | AC34: 야간 19~07 | AD34: 76 | AE34: 105 | AF34: 29 | AG34: 38%
A35: 14호 | B35: 36-02-10 (신풍-애양) 구암리사무소 앞 | C35: 소계 | D35: 749 | E35: =SUM(E36:E37) -> 295 | F35: =SUM(F36:F37) -> 295 | G35: 17 | H35: 18 | I35: 58 | J35: 55 | K35: 0 | L35: 1 | M35: 3 | N35: 4 | O35: 2 | P35: 1 | Q35: 0 | R35: 0 | S35: 0 | T35: 0 | U35: 0 | V35: 0 | W35: 0 | X35: 0 | Y35: 0 | Z35: 0 | AA35: 0 | AB35: 0 | AC35: 소계 | AD35: =SUM(AD36:AD37) -> 1,998 | AE35: =SUM(AE36:AE37) -> 1,343 | AF35: -655 | AG35: -33%
C36: 08~11 | D36: 436 | E36: 143 | F36: 210 | G36: 8 | H36: 8 | I36: 33 | J36: 27 | K36: 0 | L36: 1 | M36: 1 | N36: 2 | O36: 2 | P36: 1 | Q36: 0 | R36: 0 | S36: 0 | T36: 0 | U36: 0 | V36: 0 | W36: 0 | X36: 0 | Y36: 0 | Z36: 0 | AA36: 0 | AB36: 0 | AC36: 주간 07~19 | AD36: 1,822 | AE36: 1,171 | AF36: -651 | AG36: -36%
C37: 15~18 | D37: 313 | E37: 152 | F37: 85 | G37: 9 | H37: 10 | I37: 25 | J37: 28 | K37: 0 | L37: 0 | M37: 2 | N37: 2 | O37: 0 | P37: 0 | Q37: 0 | R37: 0 | S37: 0 | T37: 0 | U37: 0 | V37: 0 | W37: 0 | X37: 0 | Y37: 0 | Z37: 0 | AA37: 0 | AB37: 0 | AC37: 야간 19~07 | AD37: 176 | AE37: 172 | AF37: -4 | AG37: -2%
A38: 15호 | B38: 36-02-11 (조화-연화) 하나로마트 앞 | C38: 소계 | D38: 1,027 | E38: =SUM(E39:E40) -> 356 | F38: =SUM(F39:F40) -> 334 | G38: 25 | H38: 21 | I38: 137 | J38: 116 | K38: 9 | L38: 8 | M38: 4 | N38: 1 | O38: 4 | P38: 1 | Q38: 2 | R38: 5 | S38: 1 | T38: 1 | U38: 0 | V38: 2 | W38: 0 | X38: 0 | Y38: 0 | Z38: 0 | AA38: 0 | AB38: 0 | AC38: 소계 | AD38: =SUM(AD39:AD40) -> 2,104 | AE38: =SUM(AE39:AE40) -> 2,427 | AF38: 323 | AG38: 15%
C39: 08~11 | D39: 559 | E39: 196 | F39: 174 | G39: 15 | H39: 11 | I39: 75 | J39: 63 | K39: 4 | L39: 4 | M39: 3 | N39: 1 | O39: 2 | P39: 1 | Q39: 2 | R39: 5 | S39: 0 | T39: 1 | U39: 0 | V39: 2 | W39: 0 | X39: 0 | Y39: 0 | Z39: 0 | AA39: 0 | AB39: 0 | AC39: 주간 07~19 | AD39: 1,855 | AE39: 2,155 | AF39: 300 | AG39: 16%
C40: 15~18 | D40: 468 | E40: 160 | F40: 160 | G40: 10 | H40: 10 | I40: 62 | J40: 53 | K40: 5 | L40: 4 | M40: 1 | N40: 0 | O40: 2 | P40: 0 | Q40: 0 | R40: 0 | S40: 1 | T40: 0 | U40: 0 | V40: 0 | W40: 0 | X40: 0 | Y40: 0 | Z40: 0 | AA40: 0 | AB40: 0 | AC40: 야간 19~07 | AD40: 249 | AE40: 272 | AF40: 23 | AG40: 9%
A41: 16호 | B41: 36-02-12 (상봉-여흥) 월산리사무소 앞 | C41: 소계 | D41: 2,420 | E41: =SUM(E42:E43) -> 892 | F41: =SUM(F42:F43) -> 557 | G41: 23 | H41: 27 | I41: 344 | J41: 275 | K41: 30 | L41: 24 | M41: 20 | N41: 67 | O41: 35 | P41: 10 | Q41: 19 | R41: 13 | S41: 0 | T41: 0 | U41: 0 | V41: 0 | W41: 35 | X41: 15 | Y41: 0 | Z41: 33 | AA41: 1 | AB41: 0 | AC41: 소계 | AD41: =SUM(AD42:AD43) -> 4,117 | AE41: =SUM(AE42:AE43) -> 3,519 | AF41: -598 | AG41: -15%
C42: 08~11 | D42: 1,605 | E42: 518 | F42: 371 | G42: 13 | H42: 17 | I42: 241 | J42: 218 | K42: 30 | L42: 24 | M42: 20 | N42: 62 | O42: 35 | P42: 4 | Q42: 19 | R42: 13 | S42: 0 | T42: 0 | U42: 0 | V42: 0 | W42: 5 | X42: 15 | Y42: 0 | Z42: 0 | AA42: 0 | AB42: 0 | AC42: 주간 07~19 | AD42: 3,466 | AE42: 2,955 | AF42: -511 | AG42: -15%
C43: 15~18 | D43: 815 | E43: 374 | F43: 186 | G43: 10 | H43: 10 | I43: 103 | J43: 57 | K43: 0 | L43: 0 | M43: 0 | N43: 5 | O43: 0 | P43: 6 | Q43: 0 | R43: 0 | S43: 0 | T43: 0 | U43: 0 | V43: 0 | W43: 30 | X43: 0 | Y43: 0 | Z43: 33 | AA43: 1 | AB43: 0 | AC43: 야간 19~07 | AD43: 651 | AE43: 564 | AF43: -87 | AG43: -13%
A44: 17호 | B44: 36-02-13 (나진-창무) 화양중 앞 | C44: 소계 | D44: 547 | E44: =SUM(E45:E46) -> 272 | F44: =SUM(F45:F46) -> 212 | G44: 25 | H44: 13 | I44: 10 | J44: 5 | K44: 0 | L44: 0 | M44: 3 | N44: 0 | O44: 1 | P44: 0 | Q44: 4 | R44: 2 | S44: 0 | T44: 0 | U44: 0 | V44: 0 | W44: 0 | X44: 0 | Y44: 0 | Z44: 0 | AA44: 0 | AB44: 0 | AC44: 소계 | AD44: =SUM(AD45:AD46) -> 970 | AE44: =SUM(AE45:AE46) -> 935 | AF44: -35 | AG44: -4%
C45: 08~11 | D45: 325 | E45: 175 | F45: 105 | G45: 12 | H45: 8 | I45: 10 | J45: 5 | K45: 0 | L45: 0 | M45: 3 | N45: 0 | O45: 1 | P45: 0 | Q45: 4 | R45: 2 | S45: 0 | T45: 0 | U45: 0 | V45: 0 | W45: 0 | X45: 0 | Y45: 0 | Z45: 0 | AA45: 0 | AB45: 0 | AC45: 주간 07~19 | AD45: 885 | AE45: 849 | AF45: -36 | AG45: -4%
C46: 15~18 | D46: 222 | E46: 97 | F46: 107 | G46: 13 | H46: 5 | I46: 0 | J46: 0 | K46: 0 | L46: 0 | M46: 0 | N46: 0 | O46: 0 | P46: 0 | Q46: 0 | R46: 0 | S46: 0 | T46: 0 | U46: 0 | V46: 0 | W46: 0 | X46: 0 | Y46: 0 | Z46: 0 | AA46: 0 | AB46: 0 | AC46: 야간 19~07 | AD46: 85 | AE46: 86 | AF46: 1 | AG46: 1%
A47: 18호 | B47: 36-02-14 (용주-소호) 금호어울림 앞 | C47: 소계 | D47: 2,326 | E47: =SUM(E48:E49) -> 969 | F47: =SUM(F48:F49) -> 907 | G47: 39 | H47: 36 | I47: 194 | J47: 142 | K47: 13 | L47: 5 | M47: 7 | N47: 5 | O47: 5 | P47: 2 | Q47: 0 | R47: 2 | S47: 0 | T47: 0 | U47: 0 | V47: 0 | W47: 0 | X47: 0 | Y47: 0 | Z47: 0 | AA47: 0 | AB47: 0 | AC47: 소계 | AD47: =SUM(AD48:AD49) -> 7,164 | AE47: =SUM(AE48:AE49) -> 6,508 | AF47: -656 | AG47: -9%
C48: 08~11 | D48: =SUM(E48:AB48) -> 1,100 | E48: 457 | F48: 366 | G48: 19 | H48: 21 | I48: 134 | J48: 76 | K48: 12 | L48: 4 | M48: 5 | N48: 5 | O48: 0 | P48: 1 | Q48: 0 | R48: 0 | S48: 0 | T48: 0 | U48: 0 | V48: 0 | W48: 0 | X48: 0 | Y48: 0 | Z48: 0 | AA48: 0 | AB48: 0 | AC48: 주간 07~19 | AD48: 5,754 | AE48: 5,087 | AF48: -667 | AG48: -12%
C49: 15~18 | D49: 1,226 | E49: 512 | F49: 541 | G49: 20 | H49: 15 | I49: 60 | J49: 66 | K49: 1 | L49: 1 | M49: 2 | N49: 0 | O49: 5 | P49: 1 | Q49: 0 | R49: 2 | S49: 0 | T49: 0 | U49: 0 | V49: 0 | W49: 0 | X49: 0 | Y49: 0 | Z49: 0 | AA49: 0 | AB49: 0 | AC49: 야간 19~07 | AD49: 1,410 | AE49: 1,421 | AF49: 11 | AG49: 1%
A50: 21호 | B50: 36-02-15 (세포-서촌) 산전교회 인근 | C50: 소계 | D50: 127 | E50: =SUM(E51:E52) -> 35 | F50: =SUM(F51:F52) -> 34 | G50: 7 | H50: 5 | I50: 7 | J50: 5 | K50: 14 | L50: 14 | M50: 0 | N50: 5 | O50: 0 | P50: 1 | Q50: 0 | R50: 0 | S50: 0 | T50: 0 | U50: 0 | V50: 0 | W50: 0 | X50: 0 | Y50: 0 | Z50: 0 | AA50: 0 | AB50: 0 | AC50: 소계 | AD50: =SUM(AD51:AD52) -> 293 | AE50: =SUM(AE51:AE52) -> 231 | AF50: -62 | AG50: -21%
C51: 08~11 | D51: 69 | E51: 18 | F51: 13 | G51: 5 | H51: 3 | I51: 5 | J51: 3 | K51: 10 | L51: 10 | M51: 0 | N51: 1 | O51: 0 | P51: 1 | Q51: 0 | R51: 0 | S51: 0 | T51: 0 | U51: 0 | V51: 0 | W51: 0 | X51: 0 | Y51: 0 | Z51: 0 | AA51: 0 | AB51: 0 | AC51: 주간 07~19 | AD51: 242 | AE51: 218 | AF51: -24 | AG51: -10%
C52: 15~18 | D52: 58 | E52: 17 | F52: 21 | G52: 2 | H52: 2 | I52: 2 | J52: 2 | K52: 4 | L52: 4 | M52: 0 | N52: 4 | O52: 0 | P52: 0 | Q52: 0 | R52: 0 | S52: 0 | T52: 0 | U52: 0 | V52: 0 | W52: 0 | X52: 0 | Y52: 0 | Z52: 0 | AA52: 0 | AB52: 0 | AC52: 야간 19~07 | AD52: 51 | AE52: 13 | AF52: -38 | AG52: -75%
A53: 20호 | B53: 36-02-16 (우학-송고) 우실경로당 앞 | C53: 소계 | D53: 303 | E53: =SUM(E54:E55) -> 139 | F53: =SUM(F54:F55) -> 100 | G53: 2 | H53: 3 | I53: 31 | J53: 13 | K53: 10 | L53: 5 | M53: 0 | N53: 0 | O53: 0 | P53: 0 | Q53: 0 | R53: 0 | S53: 0 | T53: 0 | U53: 0 | V53: 0 | W53: 0 | X53: 0 | Y53: 0 | Z53: 0 | AA53: 0 | AB53: 0 | AC53: 소계 | AD53: =SUM(AD54:AD55) -> 658 | AE53: =SUM(AE54:AE55) -> 684 | AF53: 26 | AG53: 4%
C54: 08~11 | D54: 194 | E54: 93 | F54: 64 | G54: 1 | H54: 2 | I54: 15 | J54: 7 | K54: 8 | L54: 4 | M54: 0 | N54: 0 | O54: 0 | P54: 0 | Q54: 0 | R54: 0 | S54: 0 | T54: 0 | U54: 0 | V54: 0 | W54: 0 | X54: 0 | Y54: 0 | Z54: 0 | AA54: 0 | AB54: 0 | AC54: 주간 07~19 | AD54: 588 | AE54: 592 | AF54: 4 | AG54: 1%
C55: 15~18 | D55: 109 | E55: 46 | F55: 36 | G55: 1 | H55: 1 | I55: 16 | J55: 6 | K55: 2 | L55: 1 | M55: 0 | N55: 0 | O55: 0 | P55: 0 | Q55: 0 | R55: 0 | S55: 0 | T55: 0 | U55: 0 | V55: 0 | W55: 0 | X55: 0 | Y55: 0 | Z55: 0 | AA55: 0 | AB55: 0 | AC55: 야간 19~07 | AD55: 70 | AE55: 92 | AF55: 22 | AG55: 31%
A56: 6호 | B56: 36-02-17 (호령-신흥) 개도주조장 옆 | C56: 소계 | D56: 254 | E56: =SUM(E57:E58) -> 45 | F56: =SUM(F57:F58) -> 43 | G56: 3 | H56: 4 | I56: 56 | J56: 72 | K56: 4 | L56: 2 | M56: 3 | N56: 0 | O56: 13 | P56: 9 | Q56: 0 | R56: 0 | S56: 0 | T56: 0 | U56: 0 | V56: 0 | W56: 0 | X56: 0 | Y56: 0 | Z56: 0 | AA56: 0 | AB56: 0 | AC56: 소계 | AD56: =SUM(AD57:AD58) -> 658 | AE56: =SUM(AE57:AE58) -> 700 | AF56: 42 | AG56: 6%
C57: 08~11 | D57: 118 | E57: 17 | F57: 18 | G57: 1 | H57: 3 | I57: 22 | J57: 34 | K57: 4 | L57: 0 | M57: 3 | N57: 0 | O57: 11 | P57: 5 | Q57: 0 | R57: 0 | S57: 0 | T57: 0 | U57: 0 | V57: 0 | W57: 0 | X57: 0 | Y57: 0 | Z57: 0 | AA57: 0 | AB57: 0 | AC57: 주간 07~19 | AD57: 521 | AE57: 557 | AF57: 36 | AG57: 7%
C58: 15~18 | D58: 136 | E58: 28 | F58: 25 | G58: 2 | H58: 1 | I58: 34 | J58: 38 | K58: 0 | L58: 2 | M58: 0 | N58: 0 | O58: 2 | P58: 4 | Q58: 0 | R58: 0 | S58: 0 | T58: 0 | U58: 0 | V58: 0 | W58: 0 | X58: 0 | Y58: 0 | Z58: 0 | AA58: 0 | AB58: 0 | AC58: 야간 19~07 | AD58: 137 | AE58: 143 | AF58: 6 | AG58: 4%
A59: 22호 | B59: 36-02-18 (거문-죽촌) 삼호교횟집 앞 | C59: 소계 | D59: 285 | E59: =SUM(E60:E61) -> 85 | F59: =SUM(F60:F61) -> 84 | G59: 0 | H59: 0 | I59: 46 | J59: 50 | K59: 9 | L59: 10 | M59: 1 | N59: 0 | O59: 0 | P59: 0 | Q59: 0 | R59: 0 | S59: 0 | T59: 0 | U59: 0 | V59: 0 | W59: 0 | X59: 0 | Y59: 0 | Z59: 0 | AA59: 0 | AB59: 0 | AC59: 소계 | AD59: =SUM(AD60:AD61) -> 365 | AE59: =SUM(AE60:AE61) -> 557 | AF59: 192 | AG59: 53%
C60: 08~11 | D60: 166 | E60: 56 | F60: 51 | G60: 0 | H60: 0 | I60: 22 | J60: 25 | K60: 5 | L60: 6 | M60: 1 | N60: 0 | O60: 0 | P60: 0 | Q60: 0 | R60: 0 | S60: 0 | T60: 0 | U60: 0 | V60: 0 | W60: 0 | X60: 0 | Y60: 0 | Z60: 0 | AA60: 0 | AB60: 0 | AC60: 주간 07~19 | AD60: 327 | AE60: 505 | AF60: 178 | AG60: 54%
C61: 15~18 | D61: 119 | E61: 29 | F61: 33 | G61: 0 | H61: 0 | I61: 24 | J61: 25 | K61: 4 | L61: 4 | M61: 0 | N61: 0 | O61: 0 | P61: 0 | Q61: 0 | R61: 0 | S61: 0 | T61: 0 | U61: 0 | V61: 0 | W61: 0 | X61: 0 | Y61: 0 | Z61: 0 | AA61: 0 | AB61: 0 | AC61: 야간 19~07 | AD61: 38 | AE61: 52 | AF61: 14 | AG61: 37%
